[Event "44th Chess Olympiad Women 2022"]
[Site "Chennai"]
[Date "2022.07.30"]
[Round "2.29"]
[White "Ogbiyoyo, Perpetual Eloho"]
[Black "De Seroux, Camille"]
[Result "1-0"]
[ECO "B21"]
[WhiteElo "1886"]
[BlackElo "2106"]
[Annotator "TA"]
[PlyCount "79"]
[EventDate "2022.07.29"]
[EventType "team-tourn"]
[EventCountry "IND"]
[SourceTitle "playchess.com"]
[Source "ChessBase"]
[SourceQuality "1"]
[WhiteTeam "Nigeria"]
[BlackTeam "Switzerland"]
[WhiteTeamCountry "NGR"]
[BlackTeamCountry "SUI"]
[TimeControl "40/5400+30:1800+30"]

{[%evp 10,79,24,16,16,0,7,4,0,0,13,10,14,0,9,12,19,9,35,1,11,0,81,-36,0,0,35,-18,19,-89,-74,-151,-150,-171,-127,-208,-197,-296,-60,-63,-80,-90,-22,-25,29989,29990,29990,29991,29991,2454,1632,1266,2081,1589,1589,1589,5514,1895,29990,29989,29991,1977,29986,29981,29981,29982,29990,29991,29991,29992,29992,29993]} 1. e4 {[%emt 0:00:14]} c5 {[%emt 0:00:05]} 2. f4 {[%emt 0:00:17]} Nc6 {[%emt 0:00:40]} 3. Nf3 {[%emt 0:00:16]} g6 {[%emt 0:01:44]} 4. Bb5 {[%emt 0:00:30]} Bg7 {[%emt 0:04:22]} 5. Bxc6 {[%emt 0:01:06]} bxc6 {[%emt 0:01:28]} 6. O-O {[%emt 0:01:59]} c4 {[%emt 0:08:25] B21: Sicilian: 2 f4 and Morra Gambit.} 7. Nc3 {[%emt 0:02:41]} d6 {[%emt 0:04:58]} 8. d4 {[%emt 0:15:38]} cxd3 {[%emt 0:01:06] The position is equal.} 9. cxd3 {[%emt 0:00:11]} c5 {[%emt 0:05:58]} 10. Be3 {[%emt 0:16:38]} Nf6 {[%emt 0:00:51]} 11. h3 {[%emt 0:00:37]} O-O {[%emt 0:03:39] [#]} 12. Qd2 $146 {[%emt 0:05:40]} ({Predecessor:} 12. d4 Nd7 13. Qd2 Rb8 14. Rfd1 Nb6 15. Qe2 cxd4 16. Nxd4 Bb7 17. e5 Nd5 18. Ndb5 dxe5 19. Nxd5 Bxd5 20. Bxa7 {0-1 (30) Congiu,M (2105)-Bartel,M (2069) Urgup 2004}) 12... Rb8 {[%emt 0:07:22]} 13. Rad1 {[%emt 0:02:18]} Qc7 {[%emt 0:11:42]} 14. Qf2 {[%emt 0:09:22]} Ba6 {[%emt 0:02:32]} 15. Rfe1 {[%emt 0:01:34]} Rfd8 {[%emt 0:05:40]} (15... Bb7 $11) 16. g4 {[%emt 0:23:04]} ({Better is} 16. e5 $16 Ne8 17. d4) 16... Qb7 {[%emt 0:14:02]} 17. Bc1 {[%emt 0:01:54]} Qc8 {[%emt 0:04:43]} 18. Qg3 {[%emt 0:11:19]} (18. f5 $14) 18... Rb7 {[%emt 0:02:13]} 19. e5 {[%emt 0:01:18]} (19. f5 $11 {keeps the balance.}) 19... dxe5 $17 {[%emt 0:02:51]} 20. fxe5 {[%emt 0:00:16]} (20. Nxe5 $142 Nd7 21. Nf3) 20... Nd5 {[%emt 0:01:20]} 21. Ng5 {[%emt 0:02:44] [#]} Nb4 $1 {[%emt 0:09:58] ...h6 is the strong threat.} 22. Qf3 {[%emt 0:00:49]} (22. Qh4 $17 h6 23. e6 Bd4+ 24. Be3 hxg5 25. exf7+ Kg7 26. Qxg5) 22... e6 $19 {[%emt 0:02:43][%cal Rd8d3]} ({Not} 22... Nxd3 23. Qxf7+ Kh8 24. Re3 (24. Ne6 Rg8 $11) 24... Nxc1 25. Rxd8+ (25. Rxc1 Rf8 $15) 25... Qxd8 26. Qe6 $11) 23. Nce4 {[%emt 0:00:25]} (23. Nge4 {was called for.} Nxd3 24. Nf6+ Kh8 25. Nce4) 23... Bxe5 $2 {[%emt 0:01:23]} ({Black should play} 23... h6 $19 24. a3 Nxd3 25. Nf6+ Kh8) 24. Nf6+ $15 {[%emt 0:00:17]} Bxf6 {[%emt 0:00:12]} 25. Qxf6 {[%emt 0:00:01]} Rxd3 {[%emt 0:01:55]} (25... Nxd3 $2 26. Ne4 Qd7 27. Qh4 $18) (25... Nxa2 $2 26. Bf4 Rd5 27. Ne4 $18 (27. Be5 Rxe5 28. Qxe5 Qb8 $11)) ({Black should try} 25... Bxd3 $17 {aiming for ...Nd5.} 26. b3 Nd5) 26. Ne4 $1 $11 {[%emt 0:01:41] White threatens Bh6 and mate.} Rbd7 $2 {[%emt 0:00:49][%mdl 8192] [#] This costs Black the game.} (26... Nd5 $11 27. Qe5 Qf8) 27. Bh6 $1 {[%emt 0:00:14][%csl Gh6][%cal Rf6g7]} Qf8 {[%emt 0:00:36]} 28. Bxf8 {[%emt 0:00:01]} Kxf8 {[%emt 0:00:05] [#]} 29. Rxd3 {[%emt 0:00:19]} (29. Nxc5 $142 $1 Ke8 (29... Bc4 30. Nxd7+) 30. Nxe6 R7d6 31. Nc5+ Re6 32. Nxe6 Rg3+ 33. Kh2 Rg2+ 34. Kxg2 Bb7+ 35. Kg3 Nc6 36. Ng5+ Kf8 37. Qxf7#) 29... Nxd3 $18 {[%emt 0:00:11]} 30. Rd1 {[%emt 0:00:36]} c4 {[%emt 0:00:36]} 31. Qh8+ {[%emt 0:00:23]} Ke7 {[%emt 0:00:05]} 32. Qxh7 {[%emt 0:00:26]} Rb7 {[%emt 0:00:37]} 33. Qh4+ {[%emt 0:00:19]} Kf8 {[%emt 0:00:24]} 34. Qd8+ {[%emt 0:00:36]} Kg7 {[%emt 0:00:07]} 35. Qd4+ {[%emt 0:00:41]} (35. Nf6 $142 Rb8 36. Ne8+ Kf8 37. Qxb8 Ke7 38. Nd6 e5 39. Ne4 f6 40. Qd6+ Ke8 41. Qc7) 35... Kf8 {[%emt 0:00:05]} 36. Qd6+ {[%emt 0:00:05] White mates.} Kg7 {[%emt 0:00:08]} 37. Qxa6 {[%emt 0:00:13]} Rxb2 {[%emt 0:00:09]} 38. Qxc4 {[%emt 0:00:14]} Ne5 {[%emt 0:00:15]} 39. Qc3 {[%emt 0:00:30]} Rb5 {[%emt 0:00:07]} 40. a4 {[%emt 0:00:11] Weighted Error Value: White=0.38/Black=0.78} 1-0

[Event "44th Chess Olympiad Women 2022"]
[Site "Chennai"]
[Date "2022.07.30"]
[Round "2.30"]
[White "Sinitsina, Anastassia"]
[Black "Junior, Ednasia"]
[Result "1-0"]
[ECO "B42"]
[WhiteElo "2175"]
[BlackElo "1849"]
[Annotator "TA"]
[PlyCount "69"]
[EventDate "2022.07.29"]
[EventType "team-tourn"]
[EventCountry "IND"]
[SourceTitle "playchess.com"]
[Source "ChessBase"]
[SourceQuality "1"]
[WhiteTeam "Estonia"]
[BlackTeam "Angola"]
[WhiteTeamCountry "EST"]
[BlackTeamCountry "ANG"]
[TimeControl "40/5400+30:1800+30"]

{[%evp 18,69,44,44,52,21,49,50,66,81,131,132,128,129,122,128,120,61,56,64,65,59,105,103,147,116,179,152,171,180,179,184,226,224,321,314,356,347,715,258,257,254,255,222,232,211,212,196,365,248,299,242,227,170]} 1. e4 {[%emt 0:00:03]} c5 {[%emt 0:00:15]} 2. Nf3 {[%emt 0:00:06]} e6 {[%emt 0:00:07]} 3. d4 {[%emt 0:00:05]} cxd4 {[%emt 0:00:05]} 4. Nxd4 {[%emt 0:00:04]} a6 {[%emt 0:00:09]} 5. Bd3 {[%emt 0:00:07]} Nf6 {[%emt 0:00:14]} 6. O-O {[%emt 0:00:23]} Qc7 {[%emt 0:00:15]} 7. Qe2 {[%emt 0:00:33]} d6 {[%emt 0:01:38]} 8. c4 {[%emt 0:01:03]} Be7 {[%emt 0:00:21]} 9. Nc3 {[%emt 0:00:58]} O-O {[%emt 0:00:30] 9...Nbd7 is the hot move.} 10. Be3 {[%emt 0:02:47]} Nc6 {[%emt 0:10:00] B42: Sicilian: Kan Variation: 5 Bd3.} 11. f4 {[%emt 0:06:06]} Bd7 {[%emt 0:00:00]} 12. Rac1 {[%emt 0:02:53] [#]} Nb4 $146 {[%emt 0:00:00] White is slightly better.} ({Predecessor:} 12... Rac8 13. a3 Nxd4 14. Bxd4 e5 15. Be3 exf4 16. Bxf4 Rfe8 17. Kh1 Bf8 18. Qf3 Bg4 19. Qg3 {1-0 (27) Babayan,A (2166)-Al Ali,A (1374) Sharjah 2017}) 13. Bb1 {[%emt 0:00:44]} Qa5 {[%emt 0:03:27]} (13... Nc6 $142) 14. g4 $16 {[%emt 0:08:26]} g6 {[%emt 0:06:45]} 15. Nb3 {[%emt 0:01:03]} Qc7 {[%emt 0:05:20]} 16. a3 {[%emt 0:00:49]} Nc6 {[%emt 0:00:20]} 17. g5 {[%emt 0:01:22]} (17. Qg2 $16) 17... Nh5 $14 {[%emt 0:06:51] [#]} 18. Nd5 $1 $36 {[%emt 0:00:18][%mdl 2048] White has some pressure.} exd5 {[%emt 0:02:21]} 19. cxd5 {[%emt 0:00:05][%mdl 64] Discovered Attack} Qd8 {[%emt 0:00:13] White now steadily converts the win.} 20. dxc6 $16 {[%emt 0:00:08]} Bxc6 {[%emt 0:04:34]} 21. Nd4 {[%emt 0:00:37] Against Bb5} Bd7 {[%emt 0:03:16]} (21... d5 $16 22. Nxc6 bxc6 23. Rxc6 d4) 22. Ba2 {[%emt 0:01:01]} Rc8 {[%emt 0:15:18]} 23. Bd5 {[%emt 0:00:55]} Rxc1 {[%emt 0:09:26]} 24. Rxc1 {[%emt 0:00:16]} Bc8 {[%emt 0:09:04]} 25. Qc4 {[%emt 0:02:50]} Bh3 {[%emt 0:06:33]} (25... Nxf4 {is a better defense.} 26. Bxf4 Bxg5 27. Bxg5 Qxg5+ 28. Kh1 Bh3) 26. Qc7 $18 {[%emt 0:01:12]} (26. Bxb7 Qd7 27. Nf5 gxf5 $17) 26... Qc8 {[%emt 0:03:42] [#] White must now prevent ...Qg4+.} 27. f5 {[%emt 0:04:36] Active counter play!} (27. Qxe7 Qg4+ 28. Kf2 Nxf4 $18) 27... Qd8 {[%emt 0:05:27]} (27... Qe8 28. Ne6 gxf5) 28. f6 $2 {[%emt 0:00:52]} (28. Ne6 Qxc7 29. Rxc7) 28... Bxf6 {[%emt 0:00:15]} 29. gxf6 {[%emt 0:00:08]} Qxf6 {[%emt 0:00:26]} 30. Qc2 {[%emt 0:04:18] Qd2 is the strong threat.} ({Not} 30. Bxb7 Nf4 31. Qa5 (31. Bxa6 Qg5+ 32. Kf2 Qg2+ 33. Ke1 Qxe4 $17) 31... Rb8 32. Bxa6 (32. Qd2 $2 Qg5+ 33. Kh1 Bg2+ 34. Kg1 Nh3#) 32... Rxb2 $11) 30... Nf4 {[%emt 0:04:33]} 31. Qf2 {[%emt 0:01:56]} ({Stronger than} 31. Bxb7 Qg5+ 32. Kf2 Qh4+ 33. Kg1 Rb8 $11) 31... Nxd5 {[%emt 0:03:27]} 32. exd5 {[%emt 0:00:05]} Qe7 {[%emt 0:00:39]} (32... Qe5 {was called for.} 33. Qg3 Bg4) 33. Qg3 {[%emt 0:01:37]} Bc8 {[%emt 0:00:46]} 34. Bf2 {[%emt 0:02:21]} Qe4 {[%emt 0:00:31]} 35. Qxd6 {[%emt 0:00:48] Weighted Error Value: White=0.35/Black=0.30} 1-0

[Event "44th Chess Olympiad Women 2022"]
[Site "Chennai"]
[Date "2022.07.30"]
[Round "2.30"]
[White "Blokhin, Sofia"]
[Black "Paulo, Jemima"]
[Result "1-0"]
[ECO "B76"]
[WhiteElo "1996"]
[BlackElo "1850"]
[Annotator "TA"]
[PlyCount "73"]
[EventDate "2022.07.29"]
[EventType "team-tourn"]
[EventCountry "IND"]
[SourceTitle "playchess.com"]
[Source "ChessBase"]
[SourceQuality "1"]
[WhiteTeam "Estonia"]
[BlackTeam "Angola"]
[WhiteTeamCountry "EST"]
[BlackTeamCountry "ANG"]
[TimeControl "40/5400+30:1800+30"]

{[%evp 18,73,23,19,124,125,150,102,97,93,134,110,137,124,135,139,137,142,208,205,186,197,186,70,68,71,84,92,106,0,0,-13,-13,-28,60,70,189,180,155,114,180,61,57,26,55,64,130,135,149,155,249,246,313,261,327,314,1250,1223]} 1. e4 {[%emt 0:00:03]} c5 {[%emt 0:00:15]} 2. Nf3 {[%emt 0:00:08]} d6 {[%emt 0:00:30]} 3. d4 {[%emt 0:00:08]} cxd4 {[%emt 0:00:13]} 4. Nxd4 {[%emt 0:00:07]} Nf6 {[%emt 0:00:59]} 5. Nc3 {[%emt 0:00:12]} g6 {[%emt 0:00:14]} 6. Be3 {[%emt 0:00:13]} Bg7 {[%emt 0:00:34]} 7. f3 {[%emt 0:00:11]} O-O {[%emt 0:01:33]} 8. Qd2 {[%emt 0:00:12]} Nc6 {[%emt 0:00:14]} 9. O-O-O {[%emt 0:00:22]} d5 {[%emt 0:01:00]} 10. Kb1 {[%emt 0:00:51] [#]} Na5 $146 {[%emt 0:11:09] B76: Sicilian Dragon: Yugoslav Attack, 9 g4 and 9 0-0-0.} (10... Nxd4 $11 {keeps the balance.} 11. Bxd4 dxe4) ({Predecessor:} 10... Rb8 11. Ndb5 a6 12. Na7 e6 13. Qf2 Bd7 14. exd5 Nxd5 15. Nxd5 exd5 16. Rxd5 Qf6 17. c3 Be6 18. Nxc6 bxc6 {1-0 (33) Ivanchuk,V (2726)-Mamedov,R (2709) Huaian 2017}) 11. e5 $16 {[%emt 0:07:40]} Nd7 {[%emt 0:02:18]} 12. Nxd5 {[%emt 0:12:40] 0x0.002363f4fecddp-1022s more active pieces. The black rooks are badly placed.} (12. f4 $142) 12... Nxe5 {[%emt 0:00:42] Threatens to win with ...Nec4. White is better.} 13. Nb3 {[%emt 0:06:06]} (13. Nxe7+ $6 Qxe7 14. Qxa5 Nxf3 $1 $11) 13... Nac6 {[%emt 0:02:53]} 14. Qe1 {[%emt 0:06:49][%cal Od5b6]} Bf5 {[%emt 0:13:25][%cal Oe5d3] [#]} 15. Nf6+ $1 {[%emt 0:12:51][%mdl 512]} Bxf6 {[%emt 0:00:10]} 16. Rxd8 {[%emt 0:00:06]} Rfxd8 {[%emt 0:00:11]} 17. Be2 {[%emt 0:04:49]} Rac8 {[%emt 0:01:31]} (17... b5 $16 18. Bxb5 Rac8) 18. g4 $1 $18 {[%emt 0:09:31]} Be6 {[%emt 0:06:29]} 19. Nc5 {[%emt 0:05:37]} Bd5 {[%emt 0:14:24]} 20. Rf1 {[%emt 0:08:43]} (20. Nxb7 $18 Rf8 21. Qd2 Bxf3 22. Bxf3 Nxf3 23. Qg2) 20... Nc4 $14 {[%emt 0:02:00]} 21. Bxc4 {[%emt 0:01:30]} Bxc4 {[%emt 0:00:09]} 22. Rh1 {[%emt 0:01:38]} ({And not} 22. Nxb7 Rb8 23. Nxd8 Rxb2+ 24. Kc1 Nb4 $17) 22... Ne5 {[%emt 0:01:22]} 23. g5 {[%emt 0:10:28]} (23. Ne4 $1 $16) 23... Nxf3 $11 {[%emt 0:08:59]} 24. Qg3 {[%emt 0:05:23] [#]} Nxg5 {[%emt 0:00:09]} 25. Bxg5 {[%emt 0:01:57]} Bxg5 {[%emt 0:00:08]} (25... Rxc5 $11 26. Bxf6 exf6) 26. Qxg5 $14 {[%emt 0:00:35]} Rd5 {[%emt 0:00:06] [#]} (26... Bd5 $1 $14 27. Re1 Rxc5 28. Qxe7 Rdc8) 27. Qxe7 $1 $18 {[%emt 0:00:32]} Rdxc5 {[%emt 0:04:49] [#]} 28. Rd1 $1 $36 {[%emt 0:00:17][%mdl 2048] Black must now prevent Rd8+. Keeping Black busy.} Rd5 {[%emt 0:17:14] Inhibits Rd8+.} (28... Kg7 $16 {is a better defense.}) 29. Re1 {[%emt 0:01:35]} ({White should play} 29. Rxd5 $18 {And now Rd8+ would win.} Bxd5 30. Qd7) 29... Rd2 $14 {[%emt 0:03:29]} 30. Qxb7 {[%emt 0:02:08]} Be6 {[%emt 0:00:09]} 31. c3 {[%emt 0:01:11][%cal Oe1e6]} Bf5+ {[%emt 0:02:31]} ({Black should try} 31... Rcd8 $14 32. a4 (32. Qxa7 {is a self mate.} Bf5+ 33. Kc1 Rc2+ 34. Kb1 Re2+ 35. Kc1 Rxe1#) 32... Kg7) 32. Ka1 $16 {[%emt 0:00:04]} Rcd8 {[%emt 0:00:06] [#] ( -> ...Rd1+)} 33. a4 $1 {[%emt 0:01:04]} Rxh2 {[%emt 0:01:12]} (33... R2d7 $16 34. Qa6 h5) 34. Qxa7 $18 {[%emt 0:00:33]} Bc2 {[%emt 0:02:11]} 35. Rf1 {[%emt 0:00:55]} f5 {[%emt 0:02:54]} 36. Re1 {[%emt 0:00:14]} Re2 $2 {[%emt 0:00:13]} (36... Be4 37. a5 Rhd2) 37. Rxe2 {[%emt 0:00:16] Weighted Error Value: White=0.19 (very precise) /Black=0.40} 1-0

[Event "44th Chess Olympiad Women 2022"]
[Site "Chennai"]
[Date "2022.07.30"]
[Round "2.30"]
[White "Caxita, Esperanca"]
[Black "Olde, Margareth"]
[Result "0-1"]
[ECO "A04"]
[WhiteElo "1955"]
[BlackElo "2235"]
[Annotator "TA"]
[PlyCount "92"]
[EventDate "2022.07.29"]
[EventType "team-tourn"]
[EventCountry "IND"]
[SourceTitle "playchess.com"]
[Source "ChessBase"]
[SourceQuality "1"]
[WhiteTeam "Angola"]
[BlackTeam "Estonia"]
[WhiteTeamCountry "ANG"]
[BlackTeamCountry "EST"]
[TimeControl "40/5400+30:1800+30"]

{[%evp 14,92,12,4,4,1,20,4,30,16,10,7,18,0,0,0,0,-1,0,-6,14,0,42,-7,0,-10,79,84,92,0,0,0,0,-19,-12,-49,-52,-66,-72,-71,-62,-56,-58,-56,-51,-81,-41,-48,-49,-47,-44,-95,-96,-118,-109,-122,-110,-110,-88,-154,-148,-168,-177,-166,-158,-161,0,0,0,-204,-219,-228,-222,-916,-908,-877,-860,-804,-783,-754,-700]} 1. e4 {[%emt 0:00:07]} c5 {[%emt 0:00:06]} 2. Nc3 {[%emt 0:00:25]} Nc6 {[%emt 0:00:06]} 3. Nf3 {[%emt 0:00:23]} e6 {[%emt 0:00:41]} 4. d3 {[%emt 0:00:48]} d6 {[%emt 0:00:44]} 5. g3 {[%emt 0:00:55]} g6 {[%emt 0:00:12]} 6. Bg2 {[%emt 0:02:06]} Bg7 {[%emt 0:00:07]} 7. O-O {[%emt 0:00:29]} Nge7 {[%emt 0:01:31]} 8. Be3 {[%emt 0:04:15]} O-O {[%emt 0:01:01] A04: Unusual lines after 1 Nf3 and King's Indian Attack.} 9. Qd2 {[%emt 0:00:59]} Re8 {[%emt 0:04:49]} 10. Bh6 {[%emt 0:01:56]} Bh8 {[%emt 0:00:24] The position is equal.} 11. Rab1 {[%emt 0:06:00]} Rb8 {[%emt 0:05:28]} 12. a3 {[%emt 0:02:00]} b5 {[%emt 0:01:13] [#]} 13. Qf4 $146 {[%emt 0:08:17]} ({Predecessor:} 13. h4 b4 14. Ne2 a5 15. h5 Ba6 16. Nh4 Qc7 17. Nf4 Ne5 18. hxg6 hxg6 19. Nh3 {0-1 (34) Lidman,S-Pettersson,T (2057) Dos Hermanas 2004}) 13... Nd4 {[%emt 0:07:41]} 14. Nxd4 {[%emt 0:07:17]} cxd4 {[%emt 0:01:06]} 15. Ne2 {[%emt 0:00:35]} Nc6 {[%emt 0:04:38][%cal Be7c6,Bc6d8,Bd8f7,Bf7h8,Bh8g6][%mdl 32]} 16. Qd2 {[%emt 0:02:29]} Qc7 {[%emt 0:04:59]} 17. f4 {[%emt 0:02:37][%cal Of4f5]} f5 {[%emt 0:06:39]} 18. Rbe1 {[%emt 0:08:26]} (18. exf5 $14 {was preferrable.} exf5 19. Rbe1) 18... Nd8 $11 {[%emt 0:08:25]} 19. exf5 {[%emt 0:09:50]} gxf5 {[%emt 0:01:12]} (19... Nf7 $11 {keeps the balance.} 20. Bg5 exf5) 20. Bg5 $16 {[%emt 0:04:00][%cal Og3g4]} Bb7 {[%emt 0:06:03]} 21. Nc1 {[%emt 0:03:13]} ({White should try} 21. Bxb7 $16 Nxb7 22. g4) 21... Nf7 $11 {[%emt 0:01:32]} 22. Bh4 {[%emt 0:01:54]} Bg7 {[%emt 0:01:03]} 23. Nb3 {[%emt 0:01:33]} Nh8 {[%emt 0:02:01]} 24. Re2 {[%emt 0:02:34]} Ng6 $1 {[%emt 0:01:08]} 25. Qb4 {[%emt 0:04:48]} Bxg2 {[%emt 0:04:44]} 26. Rxg2 {[%emt 0:01:52]} Qc6 {[%emt 0:01:18]} 27. Qe1 {[%emt 0:05:02]} ({Avoid the trap} 27. Nxd4 $2 Qb6 28. c3 e5 29. Qb3+ Kh8 30. fxe5 dxe5 31. Qxb5 exd4 32. Qxb6 Rxb6 $19) 27... Nxh4 {[%emt 0:02:37]} 28. gxh4 {[%emt 0:00:09]} Kh8 {[%emt 0:00:20]} 29. Qf2 {[%emt 0:02:05]} Qd5 {[%emt 0:02:52] Black is more active.} 30. Qf3 {[%emt 0:04:11]} Qxf3 {[%emt 0:02:53]} (30... Qb7 {keeps more tension.} 31. Qh5 Rg8 32. Rff2 Rbf8) 31. Rxf3 {[%emt 0:00:06]} Rbc8 {[%emt 0:01:51]} 32. Re2 {[%emt 0:00:35]} (32. h5 $15) 32... Kg8 $17 {[%emt 0:01:33]} 33. Kg2 {[%emt 0:02:44]} Kf7 {[%emt 0:01:07]} 34. Rg3 {[%emt 0:00:49]} Bf6 {[%emt 0:02:26]} 35. h5 {[%emt 0:04:46]} e5 {[%emt 0:01:43]} 36. fxe5 {[%emt 0:02:19]} (36. Kf3 $142) 36... dxe5 {[%emt 0:00:16]} 37. Kf3 {[%emt 0:01:05]} Re7 {[%emt 0:02:36]} 38. Rg1 {[%emt 0:02:17]} Re6 {[%emt 0:03:56]} 39. Rgg2 {[%emt 0:01:27]} Bg7 $2 {[%emt 0:08:17] [#]} ({Better is} 39... Ke7 $19 {Threatens to win with ...Kd6.} 40. Kf2 Bh4+ 41. Kf1 Kd6) 40. Rg5 $11 {[%emt 0:01:46]} ({Don't blunder} 40. Nxd4 $2 e4+ 41. Ke3 f4+ 42. Kxf4 Bxd4 $19) 40... Kf6 {[%emt 0:06:48]} 41. Rgg2 {[%emt 0:30:27]} (41. Rxg7 $1 $11 Kxg7 42. Nxd4) 41... Bh6 $19 {[%emt 0:30:51]} 42. h3 {[%emt 0:01:15]} Be3 {[%emt 0:01:58]} 43. c3 $2 {[%emt 0:00:00] [#]} (43. Kg3) 43... e4+ {[%emt 0:00:00] Black is clearly winning.} 44. dxe4 {[%emt 0:00:00]} fxe4+ {[%emt 0:00:00]} 45. Kg3 {[%emt 0:00:00]} Rg8+ {[%emt 0:00:00]} 46. Kh2 {[%emt 0:00:00]} Bf4+ {[%emt 0:00:00] Weighted Error Value: White=0.39/Black=0.12 (very precise)} 0-1